bitfinex/quotes_ETHUSD_20250702
["timestamp","ask_amount","ask_price","bid_price","bid_amount"]
[1751493776849,0.01,2601.7,2601.2,0.7816]
[1751493776850,1.986,2601.7,2601.4,3.8440644]
[1751493777198,1.986,2601.7,2601.5,0.192]
[1751493777852,1.976,2601.6,2601.5,0.192]
[1751493778052,1.986,2601.7,2601.5,0.192]
[1751493779173,0.01,2601.7,2601.5,0.192]
[1751493779362,0.01,2601.7,2601.6,14.03578843]
[1751493779563,0.01,2601.7,2601.6,14.81738843]
[1751493780274,0.01,2601.7,2601.6,10.9736]
[1751493781266,0.01,2601.7,2601.6,10.192]
[1751493781470,1.986,2601.7,2601.6,10.0]
[1751493781844,1.986,2601.7,2601.5,0.192]
[1751493782259,0.01,2601.7,2601.5,0.192]
[1751493782582,0.01,2601.7,2601.6,11.0023]
[1751493783470,0.01,2601.7,2601.6,14.84608843]
[1751493784371,0.01,2601.7,2601.6,11.0023]
[1751493784884,0.01,2601.7,2601.6,10.192]
[1751493785778,0.01,2601.7,2601.6,10.0]
[1751493786373,0.01,2601.7,2601.6,14.03578843]
[1751493786782,0.01,2601.7,2601.6,10.192]
[1751493787286,0.01,2601.7,2601.6,14.03578843]
[1751493787984,0.01,2601.7,2601.6,10.192]
[1751493788155,0.01,2601.7,2601.6,14.03578843]
[1751493789583,0.01,2601.7,2601.6,22.82908843]
[1751493790384,0.01,2601.7,2601.6,14.84408843]
[1751493792966,0.01,2601.7,2601.6,11.0003]
[1751493793167,0.01,2601.7,2601.6,0.192]
[1751493793472,0.01,2601.7,2601.5,0.01]
[1751493794257,0.01,2601.7,2601.5,0.762]
[1751493794478,0.01,2601.7,2601.6,0.192]
[1751493795458,0.01,2601.7,2601.6,14.03578843]
[1751493799293,2.01,2602.6,2602.5,13.84245917]
[1751493799497,2.01,2602.6,2602.5,10.0]
[1751493799786,0.02,2602.6,2602.5,13.84245917]
[1751493800785,0.02,2602.6,2602.5,14.39245917]
[1751493801798,0.02,2602.6,2602.5,14.6746119]
[1751493804188,0.02,2602.6,2602.5,14.1246119]
[1751493805388,0.02,2602.6,2602.5,10.0]
[1751493805588,0.02,2602.6,2602.3,7.996]
[1751493805891,0.02,2602.6,2602.2,0.8181]
[1751493806089,0.02,2602.6,2602.3,7.994]
[1751493806442,0.02,2602.6,2602.4,10.0]
[1751493807792,0.02,2602.6,2602.3,10.0]
[1751493807995,0.02,2602.6,2602.4,3.84251675]
[1751493808194,0.02,2602.6,2602.5,3.84245917]
[1751493809230,0.02,2602.6,2602.5,31.68229917]
[1751493809436,0.02,2602.6,2602.5,23.59555117]
[1751493809598,0.02,2602.6,2602.5,20.75595917]
[1751493810014,0.02,2602.6,2602.5,15.35215917]
[1751493810341,0.02,2602.6,2602.5,14.80215917]
[1751493810933,0.02,2602.6,2602.5,18.34290917]
[1751493811541,0.02,2602.6,2602.5,27.35546517]
[1751493811736,0.02,2602.6,2602.5,14.80215917]
[1751493812037,0.02,2602.6,2602.5,33.17489617]
[1751493812239,0.02,2602.6,2602.5,32.70889617]
[1751493812406,0.02,2602.6,2602.5,40.70589617]
[1751493813037,0.02,2602.6,2602.5,18.9567]
[1751493813346,0.02,2602.6,2602.5,14.80215917]
[1751493814137,0.02,2602.6,2602.5,10.192]
[1751493818614,0.837,2602.6,2602.5,0.192]
[1751493822265,0.02,2602.6,2602.5,4.03445917]
[1751493823546,0.02,2602.6,2602.5,14.81155917]
[1751493823752,0.01,2602.8,2602.7,13.8421639]
[1751493824115,0.01,2602.8,2602.7,14.0341639]
[1751493829839,0.01,2602.8,2602.7,10.192]
[1751493830672,0.01,2602.8,2602.7,14.0341639]
[1751493831954,0.01,2602.8,2602.7,10.192]
[1751493832462,0.01,2602.8,2602.7,0.192]
[1751493832927,1.996,2602.8,2602.7,0.192]
[1751493833836,1.996,2602.8,2602.7,14.0341639]
[1751493834028,0.01,2602.8,2602.7,14.0341639]
[1751493840162,0.01,2602.8,2602.7,10.192]
[1751493840362,0.01,2602.8,2602.7,14.0341639]
[1751493841066,0.01,2602.8,2602.7,10.192]
[1751493842054,0.01,2602.8,2602.7,14.0341639]
[1751493842242,0.01,2602.8,2602.7,10.192]
[1751493843383,0.76,2602.8,2602.7,0.192]
[1751493843544,0.76,2602.8,2602.5,0.01]
[1751493843545,1.0346,2602.8,2602.5,0.01]
[1751493844670,0.01,2602.8,2602.6,10.0]
[1751493844879,0.01,2602.8,2602.7,4.0341639]
[1751493845087,0.01,2602.8,2602.7,0.192]
[1751493845571,1.996,2602.8,2602.7,14.0341639]
[1751493845758,1.996,2602.8,2602.7,10.192]
[1751493847542,0.01,2602.8,2602.7,10.192]
[1751493847742,0.01,2602.8,2602.7,14.8533639]
[1751493848666,0.01,2602.8,2602.7,14.0341639]
[1751493849374,0.01,2602.8,2602.7,10.192]
[1751493850162,1.996,2602.8,2602.7,10.0]
[1751493850868,2.8275,2602.8,2602.6,0.192]
[1751493851166,3.11025,2602.8,2602.6,0.192]
[1751493851573,3.11025,2602.8,2602.5,0.01]
[1751493851766,3.30225,2602.8,2602.5,0.01]
[1751493852482,7.14426674,2602.8,2602.5,0.01]
[1751493852847,0.12021044,2602.7,2602.5,0.01]
[1751493853154,0.828,2602.6,2602.5,0.01]
[1751493853345,1.02,2602.6,2602.5,0.01]
[1751493853544,1.14021807,2602.6,2602.5,0.01]
[1751493853747,12.9665296,2602.6,2602.5,0.01]
[1751493854284,24.3825133,2602.6,2602.5,0.01]
[1751493854448,28.39583754,2602.6,2602.5,0.01]
[1751493854795,39.22448187,2602.6,2602.5,1e-08]
[1751493854985,4.64404069,2601.7,2601.6,0.01]
[1751493855285,14.62104069,2601.7,2601.6,0.01]
[1751493855490,16.46749583,2601.7,2601.6,0.01]
[1751493856394,12.62385514,2601.7,2601.6,0.01]
[1751493856601,10.7794,2601.7,2601.6,0.01]
[1751493856747,1.988,2601.7,2601.6,0.01]
[1751493857894,6.65194069,2601.7,2601.6,0.01]
[1751493860695,7.20194069,2601.7,2601.6,0.01]
[1751493860987,7.32222299,2601.7,2601.6,0.01]
[1751493861185,9.23759566,2601.7,2601.6,0.01]
[1751493861898,3.84511862,2600.7,2600.6,0.01]
[1751493862111,24.43761862,2600.7,2600.6,0.01]
[1751493862384,0.8295,2600.0,2599.5,0.01]
[1751493862555,3.84653768,2599.8,2599.5,0.01]
[1751493862753,5.69826123,2599.8,2599.5,0.01]
[1751493863178,1.85172355,2599.8,2599.5,0.01]
[1751493863378,10.015,2599.7,2599.5,0.01]
[1751493863792,10.012,2599.6,2599.5,0.01]
[1751493864886,10.015,2599.6,2599.5,0.01]
[1751493865088,0.192,2599.7,2599.5,0.01]
[1751493865285,10.011,2599.6,2599.5,0.01]
[1751493865706,0.192,2599.7,2599.5,0.01]
[1751493866059,10.008,2599.6,2599.5,0.01]
[1751493867796,11.41265385,2599.6,2599.5,0.01]
[1751493868360,16.0324995,2599.6,2599.5,0.01]
[1751493870298,12.18875385,2599.6,2599.5,0.01]
[1751493870591,16.0354995,2599.6,2599.5,0.01]
[1751493871185,12.19375385,2599.6,2599.5,0.01]
[1751493871387,2.17775385,2599.6,2599.5,0.01]
[1751493871591,10.7911,2599.6,2599.5,0.01]
[1751493872690,14.63784565,2599.6,2599.5,0.01]
[1751493872872,0.7731,2599.6,2599.5,0.01]
[1751493873071,10.7901,2599.6,2599.5,0.01]
[1751493874195,10.7921,2599.6,2599.5,0.01]
[1751493874372,12.27516178,2599.6,2599.5,0.01]
[1751493878216,0.192,2599.7,2599.5,0.01]
[1751493878510,0.192,2599.8,2599.5,0.01]
[1751493878717,1.991,2599.6,2599.5,10.01]
[1751493878877,1.991,2600.0,2599.6,3.84665093]
[1751493879081,1.991,2600.0,2599.7,10.0]
[1751493879410,1.991,2600.0,2599.8,0.192]
[1751493880400,8.018,2599.9,2599.5,0.202]
[1751493880713,8.2171,2599.9,2599.5,0.202]
[1751493880917,12.0634209,2599.9,2599.5,0.01]
[1751493881120,2.22784209,2599.8,2599.5,0.01]
[1751493881286,4.03874565,2599.6,2599.5,0.01]
[1751493882930,0.192,2599.6,2599.5,0.01]
[1751493883093,10.203,2599.6,2599.5,0.01]
[1751493883301,14.04974565,2599.6,2599.5,0.01]
[1751493883617,16.0621585,2599.6,2599.5,0.01]
[1751493883791,12.21541285,2599.6,2599.5,0.01]
[1751493884285,16.0621585,2599.6,2599.5,0.01]
[1751493885792,16.18252447,2599.6,2599.5,0.01]
[1751493886202,16.18252838,2599.6,2599.5,0.01]
[1751493887488,12.33578273,2599.6,2599.5,0.01]
[1751493887710,16.18252838,2599.6,2599.5,0.01]
[1751493891228,17.78070974,2599.6,2599.5,0.01]
[1751493895045,11.13735124,2599.6,2599.5,0.01]
[1751493895250,2.11936988,2599.6,2599.5,0.01]
[1751493895540,0.12036988,2599.6,2599.5,0.202]
[1751493895703,2.11936988,2599.6,2599.5,0.202]
[1751493896341,10.11636988,2599.6,2599.5,0.202]
[1751493896500,2.11936988,2599.6,2599.5,0.202]
[1751493896899,0.12036988,2599.6,2599.5,0.9989]
[1751493898118,0.12034622,2599.6,2599.5,0.9989]
[1751493900340,2.11934622,2599.6,2599.5,0.9989]
[1751493900507,1.999,2599.6,2599.5,0.202]
[1751493900706,2.11934356,2599.6,2599.5,0.202]
[1751493901749,0.12034356,2599.6,2599.5,0.202]
[1751493901909,0.192,2600.0,2599.5,4.04889363]
[1751493901910,1.999,2599.8,2599.5,4.04889363]
[1751493902108,0.12033783,2599.7,2599.5,4.04889363]
[1751493902338,1.999,2599.8,2599.5,4.04889363]
[1751493902836,0.192,2600.0,2599.6,0.8025]
[1751493903134,1.999,2600.0,2599.7,10.192]
[1751493903352,1.999,2600.0,2599.9,0.192]
[1751493904130,3.11832901,2600.0,2599.6,0.8025]
[1751493904344,7.992,2599.9,2599.7,0.192]
[1751493905641,0.192,2600.2,2599.7,0.192]
[1751493905841,1.999,2599.8,2599.7,0.192]
[1751493906544,1.999,2599.8,2599.7,10.192]
[1751493906713,1.999,2599.8,2599.7,0.192]
[1751493907844,1.999,2599.8,2599.7,10.192]
[1751493908343,1.999,2599.9,2599.7,10.192]
[1751493908538,0.192,2600.3,2599.7,10.0]
[1751493908745,9.99,2600.2,2599.9,0.192]
[1751493909113,9.989,2600.1,2599.9,0.192]
[1751493910324,0.192,2600.3,2599.9,0.192]
[1751493910526,1.999,2600.0,2599.9,0.192]
[1751493910937,1.60063831,2600.3,2599.9,0.192]
[1751493911138,9.986,2600.2,2599.9,0.192]
[1751493911326,9.984,2600.1,2599.9,0.192]
[1751493911630,1.60063831,2600.3,2599.9,0.192]
[1751493911919,1.999,2600.0,2599.9,0.192]
[1751493912753,1.47102164,2600.2,2599.9,0.192]
[1751493913222,9.98,2600.1,2599.9,0.192]
[1751493913419,9.979,2600.0,2599.9,0.192]
[1751493914236,9.979,2600.0,2599.7,0.192]
[1751493914541,9.979,2600.0,2599.7,4.912]
[1751493915539,12.34629354,2600.0,2599.7,4.72]
[1751493915847,16.38447794,2600.0,2599.7,4.72]
[1751493917140,12.53829354,2600.0,2599.7,4.72]
[1751493917540,16.38447524,2600.0,2599.7,4.72]
[1751493917742,2.02305142,2599.9,2599.7,4.72]
[1751493917967,7.972,2599.8,2599.7,4.72]
[1751493919138,7.972,2599.8,2599.5,0.01]
[1751493919340,4.85634565,2599.6,2599.5,0.01]
[1751493919524,12.82534565,2599.6,2599.5,0.01]
[1751493919734,14.61289965,2599.6,2599.5,0.01]
[1751493922637,11.927554,2599.6,2599.5,0.01]
[1751493922948,10.26035967,2599.6,2599.5,0.01]
[1751493923355,10.14,2599.6,2599.5,0.01]
[1751493926146,0.192,2599.6,2599.5,0.01]
[1751493926342,1.982,2599.6,2599.5,0.01]
[1751493926846,1.982,2599.6,2599.5,0.202]
[1751493931759,10.9306,2599.6,2599.5,0.01]
[1751493932285,11.8767,2599.6,2599.5,0.01]
[1751493932971,11.997051,2599.6,2599.5,0.01]
[1751493934748,11.242951,2599.6,2599.5,0.01]
[1751493935645,0.312351,2599.6,2599.5,0.01]
[1751493935844,10.125,2599.6,2599.5,0.01]
[1751493936055,10.245351,2599.6,2599.5,0.01]
[1751493936447,10.125,2599.6,2599.5,0.01]
[1751493939174,10.24535449,2599.6,2599.5,0.01]
[1751493939479,11.6171874,2599.6,2599.5,0.01]
[1751493939675,11.73754189,2599.6,2599.5,0.01]
[1751493940650,11.73754291,2599.6,2599.5,0.01]
[1751493942681,10.24535551,2599.6,2599.5,0.01]
[1751493942893,0.12035551,2599.6,2599.5,0.7884]
[1751493943079,1.982,2599.8,2599.5,4.82720473]
[1751493943274,1.982,2599.8,2599.6,3.84670366]
[1751493943569,1.982,2599.8,2599.7,0.192]
[1751493946956,1.982,2599.8,2599.7,14.912]
[1751493947151,1.982,2599.8,2599.7,4.912]
[1751493947390,10.04034104,2599.8,2599.7,4.72]
[1751493948160,9.92,2599.8,2599.7,4.72]
[1751493948683,0.192,2600.0,2599.7,4.72]
[1751493948887,10.02333816,2599.9,2599.7,4.72]
[1751493949091,9.903,2599.9,2599.7,4.72]
[1751493950172,15.14342013,2599.9,2599.7,4.72]
[1751493950372,11.29711613,2599.9,2599.7,4.72]
[1751493950687,0.12033849,2599.8,2599.7,4.72]
[1751493951003,0.12034446,2599.8,2599.7,4.72]
[1751493952891,0.12034446,2599.8,2599.5,0.202]
[1751493953189,0.12034446,2599.7,2599.5,0.202]
[1751493953482,0.12034446,2599.8,2599.5,0.202]
[1751493953688,0.12034446,2599.7,2599.5,0.202]
[1751493953895,0.12034446,2599.8,2599.5,0.202]
[1751493954083,0.12034446,2599.7,2599.5,0.202]
[1751493954282,0.12034446,2599.8,2599.5,0.202]
[1751493954472,0.12034446,2599.7,2599.5,0.202]
[1751493954673,0.12034446,2599.8,2599.5,0.202]
[1751493954898,0.12034446,2599.7,2599.5,0.202]
[1751493955063,0.12034446,2599.8,2599.5,0.202]
[1751493955264,0.12034446,2599.7,2599.5,0.202]
[1751493955464,0.12034446,2599.8,2599.5,0.202]
[1751493955764,0.12034446,2599.7,2599.5,0.202]
[1751493955962,0.12034446,2599.8,2599.5,0.202]
[1751493956193,0.12034446,2599.7,2599.5,0.202]
[1751493956390,8.7028,2599.7,2599.5,0.202]
[1751493956696,1.00266484,2599.6,2599.5,0.01]
[1751493957587,4.84941049,2599.6,2599.5,0.01]
[1751493959098,4.84941433,2599.6,2599.5,0.01]
[1751493959921,7.06366725,2599.6,2599.5,0.01]
[1751493960716,17.06366725,2599.6,2599.5,0.01]
[1751493963370,26.94666725,2599.6,2599.5,0.01]
[1751493966100,26.94666725,2599.6,2599.5,1e-08]
[1751493967417,26.94671085,2599.6,2599.5,1e-08]
[1751493968712,26.94671085,2599.6,2598.5,0.01]
[1751493968713,3.84822596,2598.6,2598.5,0.01]
[1751493968918,13.84962379,2598.6,2598.5,0.01]
[1751493970485,13.84964249,2598.6,2598.5,0.01]
[1751493971790,1.966,2598.6,2598.5,0.01]
[1751493971984,10.072,2598.6,2598.5,0.01]
[1751493972218,2.158,2598.6,2598.5,0.01]
[1751493972449,10.072,2598.6,2598.5,0.01]
[1751493973408,16.5223323,2598.6,2598.5,0.01]
[1751493973821,12.67410634,2598.6,2598.5,0.01]
[1751493974026,16.5223323,2598.6,2598.5,0.01]
[1751493975019,12.67410634,2598.6,2598.5,0.01]
[1751493975221,11.84880634,2598.6,2598.5,0.01]
[1751493975421,0.192,2598.6,2598.5,0.01]
[1751493975723,10.073,2598.6,2598.5,0.01]
[1751493976097,0.192,2598.6,2598.5,0.01]
[1751493976304,10.061,2598.6,2598.5,0.01]
[1751493976522,10.061,2598.6,2598.5,0.7956]
[1751493979010,11.0671,2598.6,2598.5,0.01]
[1751493979415,14.91532596,2598.6,2598.5,0.01]
[1751493980520,11.0671,2598.6,2598.5,0.01]
[1751493980728,10.061,2598.6,2598.5,0.01]
[1751493982027,2.146,2598.6,2598.5,0.01]
[1751493982205,10.061,2598.6,2598.5,0.01]
[1751493984003,0.192,2598.6,2598.5,0.01]
[1751493984334,10.061,2598.6,2598.5,0.01]
[1751493984734,0.192,2598.6,2598.5,0.01]
[1751493984944,10.061,2598.6,2598.5,0.01]
[1751493985732,0.192,2598.6,2598.5,0.01]
[1751493985955,0.192,2598.6,2598.5,0.761]
[1751493985956,9.869,2598.6,2598.5,0.761]
[1751493986302,0.192,2598.8,2598.5,0.761]
[1751493986627,9.869,2598.7,2598.5,0.761]
[1751493986830,9.869,2598.6,2598.5,0.761]
[1751493987043,9.246,2599.0,2598.5,0.761]
[1751493987202,1.954,2598.9,2598.7,0.7526]
[1751493987953,9.438,2599.0,2598.7,0.7526]
[1751493988099,0.192,2599.5,2599.0,0.7526]
[1751493988299,9.869,2599.4,2599.1,0.192]
[1751493988604,1.954,2599.4,2599.2,0.7526]
[1751493988807,0.02,2599.5,2599.4,13.84704162]
[1751493989114,0.02,2599.5,2599.4,14.59964162]
[1751493990636,0.02,2599.5,2599.4,10.7526]
[1751493994333,0.02,2599.5,2599.4,19.31964162]
[1751493995733,0.02,2599.5,2599.4,15.4726]
[1751493996141,0.02,2599.5,2599.4,19.31964162]
[1751493997749,0.02,2599.5,2599.4,15.4726]
[1751493999955,0.02,2599.5,2599.4,15.4826]
[1751494000159,0.02,2599.5,2599.4,4.73]
[1751494001456,3.86689363,2599.5,2599.4,4.73]
[1751494001755,12.60229363,2599.5,2599.4,0.01]
[1751494001927,14.26640001,2599.5,2599.4,0.01]
[1751494003441,1.68410638,2599.5,2599.4,0.01]
[1751494003654,1.973,2599.5,2599.4,0.01]
[1751494006565,0.02,2599.5,2599.4,10.01]
[1751494006732,0.02,2599.5,2599.4,16.94532287]
[1751494015846,0.02,2599.5,2599.4,24.05295176]
[1751494016144,0.02,2599.5,2599.4,31.96395176]
[1751494019272,0.02,2599.5,2599.4,13.09828125]
[1751494019455,0.02,2599.5,2599.4,16.94532287]
[1751494031392,0.02,2599.5,2599.4,13.09828125]
[1751494031559,0.02,2599.5,2599.4,16.18232287]
[1751494031763,0.02,2599.5,2599.4,12.33528125]
[1751494032370,0.02,2599.5,2599.4,2.33528125]
[1751494032667,0.02,2599.5,2599.4,12.33528125]
[1751494033597,0.02,2599.5,2599.4,2.33528125]
[1751494033899,0.02,2599.5,2599.4,16.18232287]
[1751494034102,0.7896,2599.5,2599.4,12.33528125]
[1751494035803,0.7896,2599.5,2599.4,10.202]
[1751494036904,0.7896,2599.5,2599.4,0.202]
[1751494040899,0.02,2599.5,2599.4,0.202]
[1751494041203,1.09115,2599.5,2599.4,0.202]
[1751494042122,1.09115,2599.5,2599.4,0.01]
[1751494042808,2.24865,2599.5,2599.4,0.01]
[1751494042983,1.972,2599.5,2599.4,0.01]
[1751494043180,0.02,2599.5,2599.4,0.01]
[1751494043382,0.02,2599.5,2599.4,13.85704162]
[1751494043573,0.02,2599.5,2599.4,14.04904162]
[1751494044015,0.02,2599.5,2599.4,10.202]
[1751494044184,0.02,2599.5,2599.4,14.04904162]
[1751494044708,0.02,2599.5,2599.4,16.18232287]
[1751494055602,0.02,2599.5,2599.4,12.33528125]
[1751494056126,0.7876,2599.5,2599.4,2.14328125]
[1751494056529,1.28225534,2599.5,2599.4,0.01]
[1751494056721,1.40260901,2599.5,2599.4,0.01]
[1751494058720,5.24950264,2599.5,2599.4,0.01]
[1751494059326,5.12914897,2599.5,2599.4,0.01]
[1751494065134,14.98614897,2599.5,2599.4,0.01]
[1751494066746,15.53614897,2599.5,2599.4,0.01]
[1751494067044,26.44691141,2599.5,2599.4,0.01]
[1751494067549,26.44691141,2599.5,2599.4,1e-08]
[1751494067846,16.58991141,2599.5,2599.4,1e-08]
[1751494068012,26.44591141,2599.5,2599.4,1e-08]
[1751494070835,15.89491141,2599.5,2599.4,1e-08]
[1751494071041,14.48949363,2599.5,2599.4,1e-08]
[1751494072534,14.49049363,2599.5,2599.4,1e-08]
[1751494075060,14.48949363,2599.5,2599.4,1e-08]
[1751494077567,15.95374063,2599.5,2599.4,1e-08]
[1751494079159,25.95374063,2599.5,2599.4,1e-08]
[1751494079361,19.85463602,2599.5,2599.4,1e-08]
[1751494079954,3.84822596,2598.6,2598.5,0.01]
[1751494080262,0.8183,2598.6,2598.5,0.01]
[1751494080558,9.86,2598.6,2598.5,0.01]
[1751494082967,9.246,2599.0,2598.5,0.01]
[1751494083238,1.951,2598.6,2598.5,0.7744]
[1751494083437,9.858,2598.6,2598.5,0.7744]
[1751494083646,9.858,2598.6,2598.5,0.01]
[1751494089081,10.6763,2598.6,2598.5,0.01]
[1751494089388,15.51032596,2598.6,2598.5,0.01]
[1751494090138,26.06032596,2598.6,2598.5,0.01]
[1751494099669,16.20232596,2598.6,2598.5,0.01]
[1751494099875,26.08432596,2598.6,2598.5,0.01]
[1751494100686,26.08232596,2598.6,2598.5,0.01]
[1751494102691,26.08232596,2598.6,2598.5,1e-08]
[1751494107265,26.08232596,2598.6,2597.9,0.02]
[1751494107266,0.8155,2598.1,2597.9,0.02]
[1751494107472,14.2721147,2598.0,2597.9,0.02]
[1751494107779,13.7221147,2598.0,2597.9,0.02]
[1751494112273,21.37974359,2598.0,2597.9,0.02]
[1751494112473,31.37974359,2598.0,2597.9,0.02]
[1751494112674,34.9841646,2598.0,2597.9,0.02]
[1751494115318,44.2341646,2598.0,2597.9,0.02]
[1751494116296,44.2341646,2598.0,2597.6,0.02]
[1751494116297,11.77398811,2597.7,2597.6,0.02]
[1751494116474,19.68398811,2597.7,2597.6,0.02]
[1751494116681,22.42225431,2597.7,2597.6,0.02]
[1751494117510,23.34076705,2597.7,2597.6,0.02]
[1751494118412,33.89076705,2597.7,2597.6,0.02]
[1751494119911,33.89076705,2597.7,2597.6,1e-08]
[1751494121296,33.89076705,2597.7,2596.7,0.8283]
[1751494121297,3.85081591,2596.9,2596.2,0.8283]
[1751494121478,0.192,2596.7,2596.3,0.8283]
[1751494121807,9.992,2596.6,2596.3,0.8283]
[1751494122782,9.99,2596.5,2596.3,0.8283]
[1751494123007,9.99,2596.5,2596.3,1.0203]
[1751494123408,1.96,2596.9,2596.5,0.8221]
[1751494123622,9.988,2596.9,2596.7,0.8221]
[1751494123785,1.96,2596.9,2596.7,1.0141]
[1751494127735,0.192,2597.2,2596.7,1.0141]
[1751494127891,2.001,2596.9,2596.7,1.0141]
[1751494128207,10.021,2596.9,2596.7,1.0141]
[1751494128594,3.84941046,2597.9,2597.0,10.0]
[1751494128811,0.192,2597.6,2597.1,1.0141]
[1751494129027,0.192,2597.6,2597.2,0.8221]
[1751494129210,2.001,2597.5,2597.2,10.0]
[1751494129417,2.001,2597.5,2597.4,0.8221]
[1751494129418,10.019,2597.5,2597.4,0.8221]
[1751494129604,2.001,2597.8,2597.4,11.0141]
[1751494129826,2.001,2597.8,2597.5,0.8221]
[1751494130131,2.001,2597.8,2597.7,1.0141]
[1751494130431,2.001,2597.9,2597.7,1.0141]
[1751494131029,8.018,2597.8,2597.7,0.8221]
[1751494134035,8.018,2597.8,2597.6,0.192]
[1751494134250,10.54101183,2597.8,2597.5,0.7909]
[1751494137147,8.21,2597.8,2597.5,0.7909]
[1751494138307,8.23,2597.8,2597.5,0.7909]
[1751494139451,8.23,2597.8,2597.5,0.9829]
[1751494139452,8.016,2597.8,2597.5,0.9829]
[1751494140218,2.0,2597.7,2597.5,0.9829]
[1751494146053,2.0,2597.7,2597.5,0.192]
[1751494146254,0.202,2597.6,2597.5,0.192]
[1751494146459,0.202,2597.6,2597.3,0.831]
[1751494146646,2.192,2597.7,2597.3,0.831]
[1751494146824,8.8102,2597.6,2597.2,0.192]
[1751494147158,8.8102,2597.6,2597.1,2.13328125]
[1751494147159,0.192,2597.4,2597.1,2.13328125]
[1751494147322,0.192,2597.4,2596.9,11.0207]
[1751494147928,0.192,2597.4,2596.9,1.0207]
[1751494149339,1.87422736,2597.4,2596.9,1.0207]
[1751494150039,1.87422736,2597.4,2596.9,1.0307]
[1751494150362,5.72433702,2597.4,2596.9,1.0307]
[1751494150557,1.87422736,2597.4,2596.9,1.0307]
[1751494151060,0.7713,2597.3,2596.9,0.202]
[1751494151235,0.26455274,2597.2,2596.9,0.01]
[1751494151433,0.192,2597.2,2596.9,0.01]
[1751494151851,8.7503,2597.3,2596.9,0.01]
[1751494151852,7.979,2597.3,2596.9,0.01]
[1751494152058,8.171,2597.3,2596.9,0.202]
[1751494152264,0.12046911,2597.2,2596.9,0.202]
[1751494152464,0.12046925,2597.2,2596.9,0.202]
[1751494152632,8.6538393,2597.3,2596.9,0.202]
[1751494152829,0.12047049,2597.2,2596.9,0.202]
[1751494155566,3.97078553,2597.2,2596.9,0.202]
[1751494155730,1.26246248,2597.1,2596.9,0.202]
[1751494156365,1.26246248,2597.1,2596.9,0.01]
[1751494156664,5.11291864,2597.1,2596.9,0.01]
[1751494156866,1.26246248,2597.1,2596.9,0.01]
[1751494157159,5.11293741,2597.1,2596.9,0.01]
[1751494157361,0.53049374,2597.0,2596.9,0.01]
[1751494159063,12.34709058,2597.0,2596.9,0.01]
[1751494159271,13.11859058,2597.0,2596.9,0.01]
[1751494160967,3.27799374,2597.0,2596.9,0.01]
[1751494161166,10.71049374,2597.0,2596.9,0.01]
[1751494161463,14.56109058,2597.0,2596.9,0.01]
[1751494162553,15.32619058,2597.0,2596.9,0.01]
[1751494164261,0.192,2597.0,2596.9,0.01]
[1751494164463,2.168,2597.0,2596.9,0.01]
[1751494164676,0.192,2597.0,2596.9,0.01]
[1751494164860,2.168,2597.1,2596.9,0.01]
[1751494167874,0.192,2597.1,2596.9,0.01]
[1751494168052,2.168,2597.1,2596.9,0.01]
[1751494172150,1.976,2597.1,2596.9,0.01]
[1751494172548,0.192,2597.3,2596.9,0.01]
[1751494172886,1.976,2597.3,2597.0,0.8135]
[1751494173082,0.192,2597.4,2597.0,1.0055]
[1751494173250,1.976,2597.4,2597.0,7.92112889]
[1751494173452,1.976,2597.4,2597.3,0.8135]
[1751494173782,1.976,2597.6,2597.3,0.8135]
[1751494176791,1.976,2597.6,2597.2,0.192]
[1751494176792,0.7832,2597.5,2597.2,0.192]
[1751494176966,1.976,2597.6,2597.2,0.192]
[1751494179617,0.9952,2597.7,2597.2,0.192]
[1751494179905,2.7752,2597.5,2597.2,0.192]
[1751494180107,6.62513815,2597.5,2597.2,0.192]
[1751494180402,2.7752,2597.5,2597.2,0.192]
[1751494180762,2.9672,2597.5,2597.0,2.32528125]
[1751494180992,6.81705648,2597.5,2597.0,2.32528125]
[1751494181382,8.68382452,2597.5,2597.0,2.32528125]
[1751494182400,4.83396804,2597.5,2597.0,2.32528125]
[1751494182998,8.68383359,2597.5,2597.0,2.32528125]
[1751494183764,8.68383359,2597.5,2597.0,0.192]
[1751494184913,4.83396804,2597.5,2597.0,0.192]
[1751494185125,0.192,2597.2,2596.9,2.14328125]
[1751494189703,0.192,2597.2,2596.9,0.01]
[1751494200111,0.192,2597.0,2596.9,0.01]
[1751494200285,9.93,2597.2,2596.9,0.01]
[1751494200489,0.192,2597.2,2596.9,0.8385]
[1751494200892,0.192,2597.2,2596.9,10.8385]
[1751494201088,0.02,2597.5,2597.1,7.10762889]
[1751494201291,0.02,2597.5,2597.1,10.95801129]